fUSD/lending_fUSD_20240409
["ID","MTS","AMOUNT","RATE_DAILY","PERIOD"]
[321934307,1712641861732,-4146.04,0.00021095,2]
[321934308,1712641861742,-6436.98,0.00021095,2]
[321934309,1712641861752,-500.0,0.00021095,2]
[321934310,1712641861762,-595.82,0.00021095,2]
[321934311,1712641861771,-3072.57,0.00021095,2]
[321934312,1712641861781,-3801.38,0.00021095,2]
[321934313,1712641861791,-836.86,0.00021095,2]
[321934314,1712641861801,-500.0,0.00021095,2]
[321934315,1712641861811,-575.22,0.00021095,2]
[321934316,1712641861820,-500.0,0.00021095,2]
[321934317,1712641861830,-479.3083547,0.00021095,2]
[321934318,1712641861839,-500.0,0.00021095,2]
[321934319,1712641861849,-794.25,0.00021095,2]
[321934320,1712641861860,-500.0,0.00021095,2]
[321934321,1712641861869,-1449.69,0.00021095,2]
[321934322,1712641861879,-500.0,0.00021095,2]
[321934323,1712641861889,-1547.47,0.00021095,2]
[321934324,1712641861899,-10431.85,0.00021095,2]
[321934325,1712641861909,-5832.05,0.00021095,2]
[321934326,1712641861918,-4454.56,0.00021095,2]
[321934327,1712641861928,-2731.89,0.00021095,2]
[321934328,1712641861937,-500.0,0.00021095,2]
[321934329,1712641861947,-500.0,0.00021095,2]
[321934330,1712641861956,-500.0,0.00021095,2]
[321934331,1712641861966,-500.0,0.00021095,2]
[321934332,1712641861975,-520.11,0.00021095,2]
[321934333,1712641861985,-1390.35,0.00021095,2]
[321934334,1712641861995,-500.0,0.00021095,2]
[321934335,1712641862006,-500.0,0.00021095,2]
[321934336,1712641862016,-516.47,0.00021095,2]
[321934337,1712641862026,-911.78,0.00021095,2]
[321934338,1712641862037,-627.13,0.00021095,2]
[321934339,1712641862047,-4519.11,0.00021095,2]
[321934340,1712641862058,-576.5,0.00021095,2]
[321934341,1712641862067,-23810.58,0.00021095,2]
[321934342,1712641862077,-4866.14,0.00021095,2]
[321934343,1712641862086,-3413.24,0.00021095,2]
[321934344,1712641862097,-500.0,0.00021095,2]
[321934345,1712641862107,-11197.1,0.00021095,2]
[321934346,1712641862545,-500.0,0.00021095,2]
[321934347,1712641862557,-33556.38087898,0.00021095,2]
[321934348,1712641863124,-17151.86912102,0.00021095,2]
[321934349,1712641863134,-1548.35,0.00021095,2]
[321934350,1712641863143,-500.0,0.00021095,2]
[321934351,1712641863152,-500.0,0.00021095,2]
[321934352,1712641863161,-500.0,0.00021095,2]
[321934353,1712641863170,-746.71,0.00021095,2]
[321934354,1712641863179,-3243.77,0.00021095,2]
[321934355,1712641863188,-2425.03,0.00021095,2]
[321934356,1712641863198,-564.43941829,0.00021095,2]
[321934357,1712641863207,-500.0,0.00021095,2]
[321934358,1712641863216,-500.0,0.00021095,2]
[321934359,1712641863226,-5472.51450765,0.00021095,2]
[321934360,1712641863238,-2860.56549235,0.00021095,2]
[321934361,1712641863247,-500.0,0.00021095,2]
[321934362,1712641863257,-500.0,0.00021095,2]
[321934363,1712641863266,-1035.54,0.00021095,2]
[321934364,1712641863275,-263.60030078,0.00021095,2]
[321934365,1712641863288,-236.39969922,0.00021095,2]
[321934366,1712641863297,-579.91352358,0.00021095,2]
[321934367,1712641863306,-500.0,0.00021095,2]
[321934368,1712641863315,-6766.08,0.00021095,2]
[321934369,1712641863324,-500.0,0.00021095,2]
[321934370,1712641863333,-500.0,0.00021095,2]
[321934371,1712641863343,-500.0,0.00021095,2]
[321934372,1712641863353,-500.0,0.00021095,2]
[321934373,1712641863364,-663.87,0.00021095,2]
[321934374,1712641863373,-500.0,0.00021095,2]
[321934375,1712641863382,-878.71,0.00021095,2]
[321934376,1712641863392,-500.0,0.00021095,2]
[321934377,1712641863401,-846.68,0.00021095,2]
[321934378,1712641863411,-1807.05,0.00021095,2]
[321934379,1712641863420,-1017.65,0.00021095,2]
[321934380,1712641863430,-10890.91,0.00021095,2]
[321934381,1712641863439,-500.0,0.00021095,2]
[321934382,1712641863448,-8457.8,0.00021095,2]
[321934383,1712641863457,-20921.56,0.00021095,2]
[321934384,1712641863466,-5376.41,0.00021095,2]
[321934385,1712641863475,-500.0,0.00021095,2]
[321934386,1712641863486,-787.57,0.00021095,2]
[321934387,1712641863495,-500.0,0.00021095,2]
[321934388,1712641863505,-1996.28,0.00021095,2]
[321934389,1712641863514,-500.0,0.00021095,2]
[321934390,1712641863523,-662.71,0.00021095,2]
[321934391,1712641863532,-12618.18,0.00021095,2]
[321934392,1712641863541,-3713.69,0.00021095,2]
[321934393,1712641863549,-632.01081284,0.00021095,2]
[321934394,1712641863558,-1739.64,0.00021095,2]
[321934395,1712641863568,-300.0,0.00021095,2]
[321934396,1712641863578,-500.0,0.00021095,2]
[321934397,1712641863588,-65401.24,0.00021095,2]
[321934398,1712641863597,-5019.21,0.00021095,2]
[321934399,1712641863606,-11702.66,0.00021095,2]
[321934400,1712641863617,-500.0,0.00021095,2]
[321934401,1712641863626,-500.0,0.00021095,2]
[321934402,1712641863635,-500.0,0.00021095,2]
[321934403,1712641863644,-500.0,0.00021095,2]
[321934404,1712641863653,-1485.2,0.00021095,2]
[321934405,1712641863663,-500.0,0.00021095,2]
[321934406,1712641863671,-2530.96,0.00021095,2]
[321934407,1712641863680,-5366.35,0.00021095,2]
[321934408,1712641863689,-500.0,0.00021095,2]
[321934409,1712641863698,-1784.32,0.00021095,2]
[321934410,1712641863707,-512.87228725,0.00021095,2]
[321934411,1712641863716,-1100.33,0.00021095,2]
[321934412,1712641863725,-270.71477142,0.00021095,2]
[321934413,1712641863734,-500.0,0.00021095,2]
[321934414,1712641863744,-500.0,0.00021095,2]
[321934415,1712641863753,-500.0,0.00021095,2]
[321934416,1712641863762,-500.0,0.00021095,2]
[321934417,1712641863772,-4448.42,0.00021095,2]
[321934418,1712641863781,-6160.99,0.00021095,2]
[321934419,1712641863790,-500.0,0.00021095,2]
[321934420,1712641863799,-2131.35,0.00021095,2]
[321934421,1712641863808,-534.00211836,0.00021095,2]
[321934422,1712641863817,-3881.83,0.00021095,2]
[321934423,1712641863827,-8749.74,0.00021095,2]
[321934424,1712641863836,-5124.73,0.00021095,2]
[321934425,1712641863845,-500.0,0.00021095,2]
[321934426,1712641863854,-500.0,0.00021095,2]
[321934427,1712641863865,-916.65,0.00021095,2]
[321934428,1712641863874,-500.0,0.00021095,2]
[321934429,1712641863883,-2362.73,0.00021095,2]
[321934430,1712641863893,-4167.23,0.00021095,2]
[321934431,1712641863902,-538.42,0.00021095,2]
[321934432,1712641863911,-550.10353296,0.00021095,2]
[321934433,1712641863920,-500.0,0.00021095,2]
[321934434,1712641863930,-2148.21,0.00021095,2]
[321934435,1712641863939,-8926.03,0.00021095,2]
[321934436,1712641863949,-500.0,0.00021095,2]
[321934437,1712641863958,-500.0,0.00021095,2]
[321934438,1712641863968,-7996.51,0.00021095,2]
[321934439,1712641863979,-500.0,0.00021095,2]
[321934440,1712641863990,-1212.2,0.00021095,2]
[321934441,1712641864001,-1082.55,0.00021095,2]
[321934442,1712641864012,-2080.11,0.00021095,2]
[321934443,1712641864022,-500.0,0.00021095,2]
[321934444,1712641864031,-5911.96,0.00021095,2]
[321934445,1712641864041,-505.12540249,0.00021095,2]
[321934446,1712641864050,-500.0,0.00021095,2]
[321934447,1712641864060,-521.04135567,0.00021095,2]
[321934448,1712641864069,-777.98,0.00021095,2]
[321934449,1712641864079,-2021.89,0.00021095,2]
[321934450,1712641864088,-31896.71,0.00021095,2]
[321934451,1712641864097,-3873.79,0.00021095,2]
[321934452,1712641864117,-552.83101249,0.00021095,2]
[321934453,1712641864129,-4464.35166991,0.00021095,2]
[321934454,1712641864143,-7400.75833009,0.00021095,2]
[321934455,1712641864152,-3972.94,0.00021095,2]
[321934456,1712641864163,-899.98,0.00021095,2]
[321934457,1712641864172,-911.82,0.00021095,2]
[321934458,1712641864182,-624.39,0.00021095,2]
[321934459,1712641864191,-3925.75,0.00021095,2]
[321934460,1712641864201,-500.0,0.00021095,2]
[321934461,1712641864210,-4525.93,0.00021095,2]
[321934462,1712641864219,-524.87,0.00021095,2]
[321934463,1712641864230,-555.72,0.00021095,2]
[321934464,1712641864239,-897.46,0.00021095,2]
[321934465,1712641864249,-1551.13,0.00021095,2]
[321934466,1712641864259,-94.51525861,0.00021095,2]
[321934467,1712641864271,-926.41474139,0.00021095,2]
[321934468,1712641864281,-3306.02,0.00021095,2]
[321934469,1712641864291,-4397.65,0.00021095,2]
[321934470,1712641864300,-3733.3,0.00021095,2]
[321934471,1712641864309,-500.0,0.00021095,2]
[321934472,1712641864319,-4159.02,0.00021095,2]
[321934473,1712641864328,-948.17,0.00021095,2]
[321934474,1712641864337,-4273.49,0.00021095,2]
[321934475,1712641864347,-242.86421078,0.00021095,2]
[321934476,1712641864358,-257.13578922,0.00021095,2]
[321934477,1712641864369,-4206.43,0.00021095,2]
[321934478,1712641864378,-500.0,0.00021095,2]
[321934479,1712641864387,-2605.05,0.00021095,2]
[321934480,1712641864396,-1894.05,0.00021095,2]
[321934481,1712641864408,-574.86,0.00021095,2]
[321934482,1712641864417,-201.08,0.00021095,2]
[321934483,1712641864425,-500.0,0.00021095,2]
[321934484,1712641864435,-500.0,0.00021095,2]
[321934485,1712641864445,-500.0,0.00021095,2]
[321934486,1712641864455,-3642.1,0.00021095,2]
[321934487,1712641864466,-189.90572826,0.00021095,2]
[321934488,1712641864475,-954.94,0.00021095,2]
[321934489,1712641864488,-5286.14,0.00021095,2]
[321934490,1712641864497,-4735.03,0.00021095,2]
[321934491,1712641864509,-4.80664145,0.00021095,2]
[321934492,1712641864522,-936.37335855,0.00021095,2]
[321934493,1712641864531,-500.0,0.00021095,2]
[321934494,1712641864541,-2529.07,0.00021095,2]
[321934495,1712641864551,-500.0,0.00021095,2]
[321934496,1712641864562,-500.0,0.00021095,2]
[321934497,1712641864573,-776.07,0.00021095,2]
[321934498,1712641864583,-500.0,0.00021095,2]
[321934499,1712641864593,-3565.56,0.00021095,2]
[321934500,1712641864604,-500.0,0.00021095,2]
[321934501,1712641864614,-500.0,0.00021095,2]
[321934502,1712641864624,-1789.27,0.00021095,2]
[321934503,1712641864633,-517.48,0.00021095,2]
[321934504,1712641864642,-500.0,0.00021095,2]
[321934505,1712641864652,-2764.48,0.00021095,2]
[321934506,1712641864663,-500.0,0.00021095,2]
[321934507,1712641864673,-8642.48,0.00021095,2]
[321934508,1712641864683,-610.18,0.00021095,2]
[321934509,1712641864694,-673.91,0.00021095,2]
[321934510,1712641864712,-500.0,0.00021095,2]
[321934511,1712641864722,-1679.43,0.00021095,2]
[321934512,1712641864731,-181.5650397,0.00021095,2]
[321934513,1712641864744,-580.6449603,0.00021095,2]
[321934514,1712641864754,-1532.02,0.00021095,2]
[321934515,1712641864763,-9508.1465452,0.00021095,2]
[321934516,1712641864775,-648.7034548,0.00021095,2]
[321934517,1712641864786,-500.0,0.00021095,2]
[321934518,1712641864796,-6975.35,0.00021095,2]
[321934519,1712641864806,-523.76,0.00021095,2]
[321934520,1712641864816,-3495.71,0.00021095,2]
[321934521,1712641864825,-1149.95,0.00021095,2]
[321934522,1712641864835,-500.0,0.00021095,2]
[321934523,1712641864845,-847.6,0.00021095,2]
[321934524,1712641864854,-1414.59,0.00021095,2]
[321934525,1712641864864,-500.0,0.00021095,2]
[321934526,1712641864875,-440.78,0.00021095,2]
[321934527,1712641864885,-1064.15,0.00021095,2]
[321934528,1712641864895,-1000.0,0.000211,2]
[321934529,1712641864904,-1172.14894507,0.00021143,2]
[321934530,1712641864914,-150.0,0.00021159,2]
[321934531,1712641864923,-150.0,0.00021159,2]
[321934532,1712641864933,-2562.21196117,0.00021202,2]
[321934533,1712641864944,-200.0,0.0002121,2]
[321934534,1712641864955,-200.0,0.0002121,2]
[321934535,1712641864964,-1355.94874232,0.00021251,2]
[321934536,1712641864973,-152.0,0.00021254,4]
[321934537,1712641864983,-190.09889383,0.00021269,4]
[321934538,1712641864993,-1246.76,0.00021368,2]
[321934539,1712641865003,-1246.76,0.00021368,2]
[321934540,1712641865012,-1246.76,0.00021368,2]
[321934541,1712641865023,-1246.76,0.00021368,2]
[321934542,1712641865032,-1246.76,0.00021368,2]
[321934543,1712641865043,-1246.76,0.00021368,2]
[321934544,1712641865055,-1246.76,0.00021368,2]
[321934545,1712641865070,-1246.99665362,0.00021368,2]
[321934546,1712641865080,-963.1,0.00021368,2]
[321934547,1712641865090,-963.1,0.00021368,2]
[321934548,1712641865099,-963.1,0.00021368,2]
[321934549,1712641865110,-739.4611305,0.00021368,2]
[321934550,1712641866337,-500.0,0.00020821,2]
[321934551,1712641866350,-500.0,0.00020821,2]
[321934552,1712641866364,-500.0,0.00020821,2]
[321934553,1712641866377,-500.0,0.00020821,2]
[321934554,1712641866390,-500.0,0.00020821,2]
[321934555,1712641866404,-500.0,0.00020821,2]
[321934556,1712641866417,-500.0,0.00021095,2]
[321934557,1712641866430,-500.0,0.00021095,2]
[321934558,1712641866443,-223.6388695,0.00021368,2]
[321934559,1712641866457,-963.1,0.00021368,2]
[321934560,1712641866470,-963.32,0.00021368,2]
[321934561,1712641866485,-500.0,0.00021369,2]
[321934562,1712641866499,-500.0,0.00021369,2]
[321934563,1712641866513,-500.0,0.00021369,2]
[321934564,1712641866527,-500.0,0.00021369,2]
[321934565,1712641866540,-366.48114036,0.00021369,2]
[321934566,1712641866554,-267.58586059,0.00021369,2]
[321934567,1712641866567,-500.0,0.00021369,2]
[321934568,1712641866582,-500.0,0.00021369,2]
[321934569,1712641866595,-542.91,0.00021369,2]
[321934570,1712641866608,-500.0,0.00021369,2]
[321934571,1712641866622,-500.0,0.00021369,2]
[321934572,1712641866636,-654.32,0.00021369,2]
[321934573,1712641866651,-500.0,0.00021369,2]
[321934574,1712641866666,-626.76,0.00021369,2]
[321934575,1712641866679,-500.0,0.00021369,2]
[321934576,1712641866691,-500.0,0.00021369,2]
[321934577,1712641866704,-678.02,0.00021369,2]
[321934578,1712641866716,-801.88,0.00021369,2]
[321934579,1712641866728,-500.0,0.00021369,2]
[321934580,1712641866741,-500.0,0.00021369,2]
[321934581,1712641866754,-500.0,0.00021369,2]
[321934582,1712641866767,-463.03513023,0.00021369,2]
[321934583,1712641866780,-724.64,0.00021369,2]
[321934584,1712641866793,-500.0,0.00021369,2]
[321934585,1712641866806,-500.0,0.00021369,2]
[321934586,1712641866820,-500.0,0.00021369,2]
[321934587,1712641866833,-172.28307664,0.00021369,2]
[321934588,1712641866845,-500.0,0.00021369,2]
[321934589,1712641866858,-500.0,0.00021369,2]
[321934590,1712641866871,-500.0,0.00021369,2]
[321934591,1712641866891,-500.0,0.00021369,2]
[321934592,1712641866903,-573.13313818,0.00021369,2]
[321934593,1712641866919,-500.0,0.00021369,2]
[321934594,1712641866931,-500.0,0.00021369,2]
[321934595,1712641866943,-500.0,0.00021369,2]
[321934596,1712641866954,-500.0,0.00021369,2]
[321934597,1712641866968,-550.80439304,0.00021369,2]
[321934598,1712641866990,-892.43,0.00021369,2]
[321934599,1712641867001,-500.0,0.00021369,2]
[321934600,1712641867012,-500.0,0.00021369,2]
[321934601,1712641867024,-500.0,0.00021369,2]
[321934602,1712641867035,-359.2585279,0.00021369,2]
[321934603,1712641867046,-500.0,0.00021369,2]
[321934604,1712641867074,-500.0,0.00021369,2]
[321934605,1712641867087,-515.17,0.00021369,2]
[321934606,1712641867107,-500.0,0.00021369,2]
[321934607,1712641867121,-500.0,0.00021369,2]
[321934608,1712641867133,-504.03466452,0.00021369,2]
[321934609,1712641867146,-500.0,0.00021369,2]
[321934610,1712641867158,-500.0,0.00021369,2]
[321934611,1712641867171,-500.0,0.00021369,2]
[321934612,1712641867184,-539.77,0.00021369,2]
[321934613,1712641867196,-500.0,0.00021369,2]
[321934614,1712641867208,-500.0,0.00021369,2]
[321934615,1712641867220,-500.0,0.00021369,2]
[321934616,1712641867233,-500.0,0.00021369,2]
[321934617,1712641867244,-580.89,0.00021369,2]
[321934618,1712641867256,-500.0,0.00021369,2]
[321934619,1712641867268,-500.0,0.00021369,2]
[321934620,1712641867279,-500.0,0.00021369,2]
[321934621,1712641867290,-500.0,0.00021369,2]
[321934622,1712641867301,-500.0,0.00021369,2]
[321934623,1712641867314,-500.0,0.00021369,2]
[321934624,1712641867328,-500.0,0.00021369,2]
[321934625,1712641867340,-500.0,0.00021369,2]
[321934626,1712641867352,-672.38,0.00021369,2]
[321934627,1712641867363,-500.0,0.00021369,2]
[321934628,1712641867374,-500.0,0.00021369,2]
[321934629,1712641867385,-500.0,0.00021369,2]
[321934630,1712641867397,-500.0,0.00021369,2]
[321934631,1712641867408,-500.0,0.00021369,2]
[321934632,1712641867419,-1005.38,0.00021369,2]
[321934633,1712641867431,-1359.26,0.00021369,2]
[321934634,1712641867443,-960.57,0.00021369,2]
[321934635,1712641867462,-889.56,0.00021369,2]
[321934636,1712641867473,-562.03,0.00021369,2]
[321934637,1712641867493,-500.0,0.00021369,2]
[321934638,1712641867507,-603.4,0.00021369,2]
[321934639,1712641867519,-500.0,0.00021369,2]
[321934640,1712641867530,-500.0,0.00021369,2]
[321934641,1712641867541,-500.0,0.00021369,2]
[321934642,1712641867553,-1450.26,0.00021369,2]
[321934643,1712641867564,-500.0,0.00021369,2]
[321934644,1712641867576,-750.64,0.00021369,2]
[321934645,1712641867586,-500.0,0.00021369,2]
[321934646,1712641867598,-500.0,0.00021369,2]
[321934647,1712641867611,-500.0,0.00021369,2]
[321934648,1712641867622,-500.0,0.00021369,2]
[321934649,1712641867633,-500.0,0.00021369,2]
[321934650,1712641867644,-679.17,0.00021369,2]
[321934651,1712641867656,-500.0,0.00021369,2]
[321934652,1712641867667,-500.0,0.00021369,2]
[321934653,1712641867678,-566.79737435,0.00021369,2]
[321934654,1712641867689,-500.0,0.00021369,2]
[321934655,1712641867700,-500.0,0.00021369,2]
[321934656,1712641867711,-500.0,0.00021369,2]
[321934657,1712641867723,-1110.03,0.00021369,2]
[321934658,1712641867734,-1318.14,0.00021369,2]
[321934659,1712641867744,-500.0,0.00021369,2]
[321934660,1712641867755,-500.0,0.00021369,2]
[321934661,1712641867766,-741.5,0.00021369,2]
[321934662,1712641867776,-418.12811936,0.00021369,2]
[321934663,1712641867788,-500.0,0.00021369,2]
[321934664,1712641867798,-500.0,0.00021369,2]
[321934665,1712641867809,-500.0,0.00021369,2]
[321934666,1712641867821,-1490.5,0.00021369,2]
[321934667,1712641867831,-500.0,0.00021369,2]
[321934668,1712641867844,-500.0,0.00021369,2]
[321934669,1712641867855,-1081.98,0.00021369,2]
[321934670,1712641867867,-500.0,0.00021369,2]
[321934671,1712641867877,-522.4534169,0.00021369,2]
[321934672,1712641867888,-500.0,0.00021369,2]
[321934673,1712641867899,-500.0,0.00021369,2]
[321934674,1712641867910,-551.41,0.00021369,2]
[321934675,1712641867921,-500.0,0.00021369,2]
[321934676,1712641867932,-500.0,0.00021369,2]
[321934677,1712641867942,-500.0,0.00021369,2]
[321934678,1712641867953,-504.01576661,0.00021369,2]
[321934679,1712641867964,-150.50095962,0.00021369,2]
[321934680,1712641867975,-500.0,0.00021369,2]
[321934681,1712641867986,-500.0,0.00021369,2]
[321934682,1712641867997,-519.58651032,0.00021369,2]
[321934683,1712641868008,-500.0,0.00021369,2]
[321934684,1712641868018,-500.0,0.00021369,2]
[321934685,1712641868028,-700.78,0.00021369,2]
[321934686,1712641868038,-500.0,0.00021369,2]
[321934687,1712641868049,-500.0,0.00021369,2]
[321934688,1712641868060,-193.58939361,0.00021369,2]
[321934689,1712641868071,-500.0,0.00021369,2]
[321934690,1712641868081,-500.0,0.00021369,2]
[321934691,1712641868092,-500.0,0.00021369,2]
[321934692,1712641868104,-500.0,0.00021369,2]
[321934693,1712641868116,-500.0,0.00021369,2]
[321934694,1712641868127,-500.0,0.00021369,2]
[321934695,1712641868138,-500.0,0.00021369,2]
[321934696,1712641868148,-500.0,0.00021369,2]
[321934697,1712641868159,-500.0,0.00021369,2]
[321934698,1712641868170,-590.15556196,0.00021369,2]
[321934699,1712641868180,-500.0,0.00021369,2]
[321934700,1712641868191,-529.33554289,0.00021369,2]
[321934701,1712641868202,-500.0,0.00021369,2]
[321934702,1712641868213,-500.0,0.00021369,2]
[321934703,1712641868224,-500.0,0.00021369,2]
[321934704,1712641868235,-1231.09,0.00021369,2]
[321934705,1712641868246,-404.30901422,0.00021369,2]
[321934706,1712641868258,-500.0,0.00021369,2]
[321934707,1712641868268,-1269.19,0.00021369,2]
[321934708,1712641868279,-621.17,0.00021369,2]
[321934709,1712641868290,-500.0,0.00021369,2]
[321934710,1712641868300,-500.0,0.00021369,2]
[321934711,1712641868311,-500.0,0.00021369,2]
[321934712,1712641868322,-500.0,0.00021369,2]
[321934713,1712641868333,-500.0,0.00021369,2]
[321934714,1712641868344,-500.0,0.00021369,2]
[321934715,1712641868355,-500.0,0.00021369,2]
[321934716,1712641868367,-810.66,0.00021369,2]
[321934717,1712641868378,-520.27,0.00021369,2]
[321934718,1712641868389,-500.0,0.00021369,2]
[321934719,1712641868399,-500.0,0.00021369,2]
[321934720,1712641868410,-500.0,0.00021369,2]
[321934721,1712641868421,-500.0,0.00021369,2]
[321934722,1712641868432,-500.0,0.00021369,2]
[321934723,1712641868444,-520.95947864,0.00021369,2]
[321934724,1712641868455,-502.8,0.00021369,2]
[321934725,1712641868466,-552.39,0.00021369,2]
[321934726,1712641868477,-889.73,0.00021369,2]
[321934727,1712641868488,-566.15,0.00021369,2]
[321934728,1712641868499,-500.0,0.00021369,2]
[321934729,1712641868511,-500.0,0.00021369,2]
[321934730,1712641868522,-2104.91,0.00021369,2]
[321934731,1712641868533,-684.47,0.00021369,2]
[321934732,1712641868544,-500.0,0.00021369,2]
[321934733,1712641868555,-750.51,0.00021369,2]
[321934734,1712641868566,-500.0,0.00021369,2]
[321934735,1712641868577,-467.36518283,0.00021369,2]
[321934736,1712641868587,-2211.66,0.00021369,2]
[321934737,1712641868598,-500.0,0.00021369,2]
[321934738,1712641868610,-500.0,0.00021369,2]
[321934739,1712641868621,-500.0,0.00021369,2]
[321934740,1712641868651,-500.0,0.00021369,2]
[321934741,1712641868682,-1329.48,0.00021369,2]
[321934742,1712641868693,-500.0,0.00021369,2]
[321934743,1712641868703,-1837.11,0.00021369,2]
[321934744,1712641868715,-1283.4,0.00021369,2]
[321934745,1712641868726,-525.20026594,0.00021369,2]
[321934746,1712641868740,-1954.69,0.00021369,2]
[321934747,1712641868751,-500.0,0.00021369,2]
[321934748,1712641868768,-500.0,0.00021369,2]
[321934749,1712641868778,-576.25,0.00021369,2]
[321934750,1712641868802,-500.0,0.00021369,2]
[321934751,1712641868823,-500.0,0.00021369,2]
[321934752,1712641868837,-500.0,0.00021369,2]
[321934753,1712641868857,-500.0,0.00021369,2]
[321934754,1712641868870,-692.39,0.00021369,2]
[321934755,1712641868882,-500.0,0.00021369,2]
[321934756,1712641868892,-509.9,0.00021369,2]
[321934757,1712641868915,-162.81039293,0.00021369,2]
[321934758,1712641868926,-500.0,0.00021369,2]
[321934759,1712641868938,-500.0,0.00021369,2]
[321934760,1712641868971,-500.0,0.00021369,2]
[321934761,1712641868995,-500.0,0.00021369,2]
[321934762,1712641869015,-260.81143974,0.00021369,2]
[321934763,1712641869045,-500.0,0.00021369,2]
[321934764,1712641869057,-961.78,0.00021369,2]
[321934765,1712641869068,-404.28883651,0.00021369,2]
[321934766,1712641869091,-500.0,0.00021369,2]
[321934767,1712641869104,-2900.57,0.00021369,2]
[321934768,1712641869129,-1980.99,0.00021369,2]
[321934769,1712641869152,-1733.36,0.00021369,2]
[321934770,1712641869179,-1016.84,0.00021369,2]
[321934771,1712641869193,-500.0,0.00021369,2]
[321934772,1712641869205,-663.75,0.00021369,2]
[321934773,1712641869216,-500.0,0.00021369,2]
[321934774,1712641869248,-1622.49,0.00021369,2]
[321934775,1712641869271,-1563.13,0.00021369,2]
[321934776,1712641869288,-1292.26,0.00021369,2]
[321934777,1712641869509,-749.86,0.00021369,2]
[321934778,1712641869520,-619.23366187,0.00021369,2]
[321934779,1712641869532,-500.0,0.00021369,2]
[321934780,1712641869546,-500.0,0.00021369,2]
[321934781,1712641869558,-500.0,0.00021369,2]
[321934782,1712641869570,-500.0,0.00021369,2]
[321934783,1712641869581,-1506.04,0.00021369,2]
[321934784,1712641869592,-500.0,0.00021369,2]
[321934785,1712641869602,-500.0,0.00021369,2]
[321934786,1712641869619,-500.0,0.00021369,2]
[321934787,1712641869630,-500.0,0.00021369,2]
[321934788,1712641869641,-500.0,0.00021369,2]
[321934789,1712641869652,-903.42,0.00021369,2]
[321934790,1712641869665,-1745.45,0.00021369,2]
[321934791,1712641869676,-2309.39,0.00021369,2]
[321934792,1712641869694,-500.0,0.00021369,2]
[321934793,1712641869706,-1970.46,0.00021369,2]
[321934794,1712641869724,-663.26,0.00021369,2]
[321934795,1712641869736,-500.0,0.00021369,2]
[321934796,1712641869748,-739.35,0.00021369,2]
[321934797,1712641869761,-500.0,0.00021369,2]
[321934798,1712641869774,-582.21,0.00021369,2]
[321934799,1712641869787,-126.72306616,0.00021369,2]
[321934800,1712641869924,-494.95693384,0.00021369,2]
[321934801,1712641869937,-210.28054416,0.00021369,2]
[321934802,1712641869950,-259.73055596,0.00021369,2]
[321934803,1712641870973,-500.0,0.00020821,2]
[321934804,1712641870984,-29.98889988,0.00021369,2]
[321934805,1712641870994,-548.02,0.00021369,2]
[321934806,1712641871004,-1196.48,0.00021369,2]